fUSD/lending_fUSD_20250923
["ID","MTS","AMOUNT","RATE_DAILY","PERIOD"]
[387247709,1758664391000,-400.0,0.00027397,3]
[387247710,1758664391009,-2196.12,0.00027397,3]
[387247711,1758664391018,-403.19,0.00027397,3]
[387247712,1758664391028,-1160.52,0.00027397,3]
[387247713,1758664391037,-400.0,0.00027397,3]
[387247714,1758664391046,-4427.59,0.00027397,3]
[387247715,1758664391055,-944.83,0.00027397,3]
[387247716,1758664391065,-736.09,0.00027397,3]
[387247717,1758664391074,-944.83,0.00027397,3]
[387247718,1758664391083,-944.83,0.00027397,3]
[387247719,1758664391092,-944.83,0.00027397,3]
[387247720,1758664391109,-944.83,0.00027397,3]
[387247721,1758664391118,-944.83,0.00027397,3]
[387247722,1758664391127,-944.83,0.00027397,3]
[387247723,1758664391136,-1729.78,0.00027397,3]
[387247724,1758664391145,-509.42,0.00027397,3]
[387247725,1758664391154,-944.83,0.00027397,3]
[387247726,1758664391164,-944.83,0.00027397,3]
[387247727,1758664391172,-858.26,0.00027397,3]
[387247728,1758664391181,-944.83,0.00027397,3]
[387247729,1758664391190,-944.83,0.00027397,3]
[387247730,1758664391200,-2115.52,0.00027397,3]
[387247731,1758664391209,-1974.89,0.00027397,3]
[387247732,1758664391218,-523.04,0.00027397,3]
[387247733,1758664391227,-1946.73,0.00027397,3]
[387247734,1758664391237,-590.58,0.00027397,3]
[387247735,1758664391247,-2168.16,0.00027397,3]
[387247736,1758664391256,-1720.08,0.00027397,3]
[387247737,1758664391265,-570.83,0.00027397,3]
[387247738,1758664391275,-1479.38,0.00027397,3]
[387247739,1758664391284,-543.91,0.00027397,3]
[387247740,1758664391294,-3204.79,0.00027397,3]
[387247741,1758664391303,-1290.76,0.00027397,3]
[387247742,1758664391312,-466.33,0.00027397,3]
[387247743,1758664391321,-400.0,0.00027397,3]
[387247744,1758664391331,-727.07,0.00027397,3]
[387247745,1758664391340,-633.05,0.00027397,3]
[387247746,1758664391350,-413.88,0.00027397,3]
[387247747,1758664391359,-1323.54,0.00027397,3]
[387247748,1758664391368,-505.54,0.00027397,3]
[387247749,1758664391377,-654.93,0.00027397,3]
[387247750,1758664391386,-760.67,0.00027397,3]
[387247751,1758664391396,-1733.39,0.00027397,3]
[387247752,1758664391408,-2310.41,0.00027397,3]
[387247753,1758664391417,-562.75,0.00027397,3]
[387247754,1758664391426,-400.0,0.00027397,3]
[387247755,1758664391436,-2523.28,0.00027397,3]
[387247756,1758664391446,-551.29,0.00027397,3]
[387247757,1758664391455,-1966.27,0.00027397,3]
[387247758,1758664391464,-2604.18,0.00027397,3]
[387247759,1758664391474,-1174.67,0.00027397,3]
[387247760,1758664391483,-421.49,0.00027397,3]
[387247761,1758664391493,-400.0,0.00027397,3]
[387247762,1758664391508,-706.26,0.00027397,3]
[387247763,1758664391517,-3628.11,0.00027397,3]
[387247764,1758664391527,-2276.88,0.00027397,3]
[387247765,1758664391537,-565.31,0.00027397,3]
[387247766,1758664391546,-1829.63,0.00027397,3]
[387247767,1758664391555,-2647.87,0.00027397,3]
[387247768,1758664391565,-2516.63,0.00027397,3]
[387247769,1758664391574,-1595.55,0.00027397,3]
[387247770,1758664391583,-400.0,0.00027397,3]
[387247771,1758664391592,-3130.39,0.00027397,3]
[387247772,1758664391602,-400.0,0.00027397,3]
[387247773,1758664391611,-1399.27,0.00027397,3]
[387247774,1758664391620,-2000.0,0.00027397,30]
[387247775,1758664391629,-2009.15564781,0.00027397,30]
[387247776,1758664391639,-4362.99,0.00027397,3]
[387247777,1758664391648,-1323.37,0.00027397,3]
[387247778,1758664391658,-435.62,0.00027397,3]
[387247779,1758664391667,-2164.69,0.00027397,3]
[387247780,1758664391677,-410.88,0.00027397,3]
[387247781,1758664391686,-400.0,0.00027397,3]
[387247782,1758664391696,-554.53,0.00027397,3]
[387247783,1758664391706,-400.0,0.00027397,3]
[387247784,1758664391717,-2696.65,0.00027397,3]
[387247785,1758664391728,-400.0,0.00027397,3]
[387247786,1758664391738,-400.0,0.00027397,3]
[387247787,1758664391747,-400.0,0.00027397,3]
[387247788,1758664391757,-400.0,0.00027397,3]
[387247789,1758664391767,-400.0,0.00027397,3]
[387247790,1758664391776,-400.0,0.00027397,3]
[387247791,1758664391786,-436.41,0.00027397,3]
[387247792,1758664391795,-400.0,0.00027397,3]
[387247793,1758664391806,-400.0,0.00027397,3]
[387247794,1758664391816,-400.0,0.00027397,3]
[387247795,1758664391827,-400.0,0.00027397,3]
[387247796,1758664391836,-2557.76,0.00027397,3]
[387247797,1758664391848,-1822.61,0.00027397,3]
[387247798,1758664391859,-2080.13,0.00027397,3]
[387247799,1758664391869,-7563.58,0.00027397,3]
[387247800,1758664391879,-2197.93,0.00027397,3]
[387247801,1758664391888,-547.88,0.00027397,3]
[387247802,1758664391897,-2360.32,0.00027397,3]
[387247803,1758664391907,-2254.46,0.00027397,3]
[387247804,1758664391916,-439.37,0.00027397,3]
[387247805,1758664391925,-3272.4,0.00027397,3]
[387247806,1758664391935,-2668.58,0.00027397,3]
[387247807,1758664391945,-413.35,0.00027397,3]
[387247808,1758664391955,-1439.94,0.00027397,3]
[387247809,1758664391966,-587.39,0.00027397,3]
[387247810,1758664391975,-1694.56,0.00027397,3]
[387247811,1758664391985,-400.0,0.00027397,3]
[387247812,1758664391994,-877.79,0.00027397,3]
[387247813,1758664392004,-400.0,0.00027397,3]
[387247814,1758664392013,-400.0,0.00027397,3]
[387247815,1758664392023,-1910.92,0.00027397,3]
[387247816,1758664392034,-400.0,0.00027397,3]
[387247817,1758664392046,-2031.07,0.00027397,3]
[387247818,1758664392056,-784.22,0.00027397,3]
[387247819,1758664392065,-791.36,0.00027397,3]
[387247820,1758664392075,-400.0,0.00027397,3]
[387247821,1758664392086,-559.88,0.00027397,3]
[387247822,1758664392097,-976.72,0.00027397,3]
[387247823,1758664392107,-626.61,0.00027397,3]
[387247824,1758664392116,-4896.65,0.00027397,3]
[387247825,1758664392126,-214.8,0.00027397,3]
[387247826,1758664392135,-1207.96,0.00027397,3]
[387247827,1758664392144,-1175.49,0.00027397,3]
[387247828,1758664392154,-2758.07,0.00027397,3]
[387247829,1758664392163,-400.0,0.00027397,3]
[387247830,1758664392172,-2495.95,0.00027397,3]
[387247831,1758664392181,-1205.82,0.00027397,3]
[387247832,1758664392190,-1169.14,0.00027397,3]
[387247833,1758664392200,-400.0,0.00027397,3]
[387247834,1758664392209,-1595.32,0.00027397,3]
[387247835,1758664392220,-1049.38,0.00027397,3]
[387247836,1758664392229,-437.86511883,0.00027397,3]
[387247837,1758664392238,-4079.21,0.00027397,3]
[387247838,1758664392247,-685.44,0.00027397,3]
[387247839,1758664392257,-400.0,0.00027397,3]
[387247840,1758664392266,-2510.3,0.00027397,3]
[387247841,1758664392276,-1678.52,0.00027397,3]
[387247842,1758664392286,-1890.53,0.00027397,3]
[387247843,1758664392296,-16706.02,0.00027397,3]
[387247844,1758664392305,-400.0,0.00027397,3]
[387247845,1758664392314,-400.0,0.00027397,3]
[387247846,1758664392324,-400.0,0.00027397,3]
[387247847,1758664392333,-689.28,0.00027397,3]
[387247848,1758664392342,-400.0,0.00027397,3]
[387247849,1758664392351,-4251.49,0.00027397,3]
[387247850,1758664392361,-2074.52,0.00027397,3]
[387247851,1758664392370,-400.0,0.00027397,3]
[387247852,1758664392379,-720.98,0.00027397,3]
[387247853,1758664392389,-400.0,0.00027397,3]
[387247854,1758664392398,-3330.98,0.00027397,3]
[387247855,1758664392411,-425.15,0.00027397,3]
[387247856,1758664392421,-487.18,0.00027397,3]
[387247857,1758664392430,-400.0,0.00027397,3]
[387247858,1758664392439,-605.39,0.00027397,3]
[387247859,1758664392450,-425.07,0.00027397,3]
[387247860,1758664392459,-630.04,0.00027397,3]
[387247861,1758664392469,-507.22,0.00027397,3]
[387247862,1758664392481,-1822.56,0.00027397,3]
[387247863,1758664392491,-502.06385208,0.00027397,2]
[387247864,1758664392501,-13418.14,0.00027397,3]
[387247865,1758664392510,-1189.77,0.00027397,3]
[387247866,1758664392520,-908.29,0.00027397,3]
[387247867,1758664392529,-752.17,0.00027397,3]
[387247868,1758664392539,-2046.35,0.00027397,3]
[387247869,1758664392548,-472.22,0.00027397,3]
[387247870,1758664392558,-212.81437836,0.00027397,3]
[387247871,1758664392567,-2819.02,0.00027397,3]
[387247872,1758664392576,-400.0,0.00027397,3]
[387247873,1758664392588,-2102.44,0.00027397,3]
[387247874,1758664392598,-300.0,0.00027397,2]
[387247875,1758664392608,-527.41,0.00027397,2]
[387247876,1758664392617,-151.0,0.00027397,7]
[387247877,1758664392627,-151.0,0.00027397,7]
[387247878,1758664392637,-151.0,0.00027397,7]
[387247879,1758664392647,-295.396498,0.00027397,7]
[387247880,1758664392656,-155.89892347,0.00027397,5]
[387247881,1758664392666,-156.86023955,0.00027397,5]
[387247882,1758664392675,-2728.75867,0.0002741,2]
[387247883,1758664392685,-815.0,0.0002743,2]
[387247884,1758664392694,-14253.46763913,0.00027434,7]
[387247885,1758664392703,-1233.0,0.00027476,2]
[387247886,1758664392713,-632.59670279,0.00027476,2]
[387247887,1758664392722,-500.0,0.00027476,2]
[387247888,1758664392732,-434.0,0.00027476,2]
[387247889,1758664392741,-152.0,0.00027495,8]
[387247890,1758664392750,-300.0,0.000275,2]
[387247891,1758664392759,-1250.0,0.000275,2]
[387247892,1758664392769,-3958.84491989,0.00027519,7]
[387247893,1758664392778,-33083.6423996,0.00027519,7]
[387247894,1758664393016,-25236.7911915,0.00027519,7]
[387247895,1758664393026,-6050.3608566,0.00027519,7]
[387247896,1758664393036,-400.00000002,0.00027519,7]
[387247897,1758664393045,-400.0,0.00027539,3]
[387247898,1758664393055,-4833.4,0.00027539,4]
[387247899,1758664393066,-947.43,0.00027629,3]
[387247900,1758664393077,-403.15,0.00027671,3]
[387247901,1758664393088,-400.0,0.00027671,3]
[387247902,1758664393098,-422.15,0.00027671,3]
[387247903,1758664393108,-400.0,0.00027671,3]
[387247904,1758664393117,-722.3,0.00027671,3]
[387247905,1758664393129,-400.0,0.00027671,3]
[387247906,1758664393139,-425.13,0.00027671,3]
[387247907,1758664393149,-400.0,0.00027671,3]
[387247908,1758664393159,-463.61,0.00027671,3]
[387247909,1758664393168,-400.0,0.00027671,3]
[387247910,1758664393178,-400.81,0.00027671,3]
[387247911,1758664393189,-606.67,0.00027671,3]
[387247912,1758664393199,-558.51,0.00027671,3]
[387247913,1758664393209,-400.0,0.00027671,3]
[387247914,1758664393218,-517.79,0.00027671,3]
[387247915,1758664393227,-410.1,0.00027671,3]
[387247916,1758664393238,-513.24,0.00027671,3]
[387247917,1758664393248,-864.38,0.00027671,3]
[387247918,1758664393258,-400.0,0.00027671,3]
[387247919,1758664393268,-400.0,0.00027671,3]
[387247920,1758664393278,-400.0,0.00027671,3]
[387247921,1758664393288,-400.0,0.00027671,3]
[387247922,1758664393298,-400.0,0.00027671,3]
[387247923,1758664393307,-400.0,0.00027671,3]
[387247924,1758664393317,-1162.37,0.00027671,3]
[387247925,1758664393327,-400.0,0.00027671,3]
[387247926,1758664393336,-499.32,0.00027671,3]
[387247927,1758664393346,-400.0,0.00027671,3]
[387247928,1758664393358,-400.0,0.00027671,3]
[387247929,1758664393369,-400.0,0.00027671,3]
[387247930,1758664393383,-701.54,0.00027671,3]
[387247931,1758664393403,-761.54,0.00027671,3]
[387247932,1758664393423,-448.15,0.00027671,3]
[387247933,1758664393437,-448.15,0.00027671,3]
[387247934,1758664393449,-527.27,0.00027671,3]
[387247935,1758664393459,-400.0,0.00027671,3]
[387247936,1758664393469,-400.0,0.00027671,3]
[387247937,1758664393478,-400.0,0.00027671,3]
[387247938,1758664393487,-433.43,0.00027671,3]
[387247939,1758664393497,-400.0,0.00027671,3]
[387247940,1758664393506,-1431.46,0.00027671,3]
[387247941,1758664393515,-400.0,0.00027671,3]
[387247942,1758664393524,-888.36,0.00027671,3]
[387247943,1758664393534,-400.0,0.00027671,3]
[387247944,1758664393544,-500.78,0.00027671,3]
[387247945,1758664393556,-400.0,0.00027671,3]
[387247946,1758664393566,-400.0,0.00027671,3]
[387247947,1758664393576,-415.37,0.00027671,3]
[387247948,1758664393586,-400.0,0.00027671,3]
[387247949,1758664393595,-851.65,0.00027671,3]
[387247950,1758664393605,-469.22,0.00027671,3]
[387247951,1758664393615,-514.2,0.00027671,3]
[387247952,1758664393625,-696.09,0.00027671,3]
[387247953,1758664393635,-400.0,0.00027671,3]
[387247954,1758664393645,-942.3,0.00027671,3]
[387247955,1758664393655,-401.11,0.00027671,3]
[387247956,1758664393666,-401.11,0.00027671,3]
[387247957,1758664393676,-426.89,0.00027671,3]
[387247958,1758664393686,-409.1,0.00027671,3]
[387247959,1758664393695,-400.0,0.00027671,3]
[387247960,1758664393705,-483.66,0.00027671,3]
[387247961,1758664393715,-700.73,0.00027671,3]
[387247962,1758664393726,-1218.15,0.00027671,3]
[387247963,1758664393738,-432.38,0.00027671,3]
[387247964,1758664393747,-400.0,0.00027671,3]
[387247965,1758664393757,-413.32,0.00027671,3]
[387247966,1758664393767,-600.39,0.00027671,3]
[387247967,1758664393778,-400.0,0.00027671,3]
[387247968,1758664393789,-525.79,0.00027671,3]
[387247969,1758664393799,-400.0,0.00027671,3]
[387247970,1758664393809,-585.89,0.00027671,3]
[387247971,1758664393819,-400.0,0.00027671,3]
[387247972,1758664393829,-1162.35,0.00027671,3]
[387247973,1758664393839,-869.19,0.00027671,3]
[387247974,1758664393849,-400.0,0.00027671,3]
[387247975,1758664393862,-853.3,0.00027671,3]
[387247976,1758664393871,-400.0,0.00027671,3]
[387247977,1758664393881,-400.0,0.00027671,3]
[387247978,1758664393890,-684.3,0.00027671,3]
[387247979,1758664393899,-433.77,0.00027671,3]
[387247980,1758664393908,-400.0,0.00027671,3]
[387247981,1758664393918,-451.05,0.00027671,3]
[387247982,1758664393927,-1130.1,0.00027671,3]
[387247983,1758664393936,-1034.82,0.00027671,3]
[387247984,1758664393945,-414.11,0.00027671,3]
[387247985,1758664393955,-400.0,0.00027671,3]
[387247986,1758664393964,-400.0,0.00027671,3]
[387247987,1758664393974,-400.0,0.00027671,3]
[387247988,1758664393983,-568.34,0.00027671,3]
[387247989,1758664393993,-497.27,0.00027671,3]
[387247990,1758664394002,-400.0,0.00027671,3]
[387247991,1758664394012,-483.14,0.00027671,3]
[387247992,1758664394022,-400.0,0.00027671,3]
[387247993,1758664394033,-400.0,0.00027671,3]
[387247994,1758664394044,-963.02,0.00027671,3]
[387247995,1758664394058,-442.92,0.00027671,3]
[387247996,1758664394068,-400.0,0.00027671,3]
[387247997,1758664394077,-400.0,0.00027671,3]
[387247998,1758664394087,-419.2,0.00027671,3]
[387247999,1758664394096,-495.44,0.00027671,3]
[387248000,1758664394106,-338.62537493,0.00027671,3]
[387248001,1758664394115,-1113.1,0.00027671,3]
[387248002,1758664394125,-564.87,0.00027671,3]
[387248003,1758664394134,-400.0,0.00027671,3]
[387248004,1758664394143,-400.0,0.00027671,3]
[387248005,1758664394153,-442.1,0.00027671,3]
[387248006,1758664394162,-612.62,0.00027671,3]
[387248007,1758664394171,-544.44,0.00027671,3]
[387248008,1758664394181,-553.48,0.00027671,3]
[387248009,1758664394190,-811.92,0.00027671,3]
[387248010,1758664394199,-866.52,0.00027671,3]
[387248011,1758664394208,-400.0,0.00027671,3]
[387248012,1758664394218,-400.0,0.00027671,3]
[387248013,1758664394227,-1271.99,0.00027671,3]
[387248014,1758664394236,-400.0,0.00027671,3]
[387248015,1758664394246,-555.94,0.00027671,3]
[387248016,1758664394255,-516.66,0.00027671,3]
[387248017,1758664394266,-443.34,0.00027671,3]
[387248018,1758664394275,-460.81,0.00027671,3]
[387248019,1758664394284,-400.0,0.00027671,3]
[387248020,1758664394294,-502.53,0.00027671,3]
[387248021,1758664394304,-505.37,0.00027671,3]
[387248022,1758664394313,-542.19,0.00027671,3]
[387248023,1758664394323,-688.7,0.00027671,3]
[387248024,1758664394334,-1015.44,0.00027671,3]
[387248025,1758664394344,-1292.63,0.00027671,3]
[387248026,1758664394354,-1611.73,0.00027671,3]
[387248027,1758664394364,-637.7,0.00027671,3]
[387248028,1758664394374,-1000.0,0.00027671,3]
[387248029,1758664394383,-660.83,0.00027671,3]
[387248030,1758664394393,-549.84,0.00027671,3]
[387248031,1758664394404,-1262.83,0.00027671,3]
[387248032,1758664394416,-500.0,0.00027671,2]
[387248033,1758664394425,-400.0,0.00027671,3]
[387248034,1758664394434,-511.14,0.00027671,3]
[387248035,1758664394443,-1072.23,0.00027671,3]
[387248036,1758664394454,-435.66,0.00027671,3]
[387248037,1758664394463,-400.0,0.00027671,3]
[387248038,1758664394472,-446.42,0.00027671,3]
[387248039,1758664394483,-956.24,0.00027671,3]
[387248040,1758664394493,-804.81,0.00027671,3]
[387248041,1758664394502,-493.33,0.00027671,3]
[387248042,1758664394511,-195.19301789,0.00027671,3]
[387248043,1758664394521,-400.0,0.00027671,3]
[387248044,1758664394530,-400.0,0.00027671,3]
[387248045,1758664394539,-400.0,0.00027671,3]
[387248046,1758664394549,-425.12,0.00027671,3]
[387248047,1758664394558,-400.0,0.00027671,3]
[387248048,1758664394568,-536.14,0.00027671,3]
[387248049,1758664394577,-194.83769981,0.00027671,3]
[387248050,1758664394586,-400.0,0.00027671,3]
[387248051,1758664394597,-400.0,0.00027671,3]
[387248052,1758664394607,-647.53,0.00027671,3]
[387248053,1758664394617,-1446.35,0.00027671,3]
[387248054,1758664394627,-400.0,0.00027671,3]
[387248055,1758664394638,-400.0,0.00027671,3]
[387248056,1758664394649,-307.71576465,0.00027671,3]
[387248057,1758664394659,-712.76,0.00027671,3]
[387248058,1758664394668,-400.0,0.00027671,3]
[387248059,1758664394677,-400.0,0.00027671,3]
[387248060,1758664394686,-742.51,0.00027671,3]
[387248061,1758664394695,-400.0,0.00027671,3]
[387248062,1758664394704,-400.0,0.00027671,3]
[387248063,1758664394714,-609.25,0.00027671,3]
[387248064,1758664394724,-1004.12,0.00027671,3]
[387248065,1758664394733,-400.0,0.00027671,3]
[387248066,1758664394743,-1267.73,0.00027671,3]
[387248067,1758664394752,-400.0,0.00027671,3]
[387248068,1758664394762,-1089.2,0.00027671,3]
[387248069,1758664394771,-936.94,0.00027671,3]
[387248070,1758664394780,-463.21137539,0.00027671,3]
[387248071,1758664394790,-400.0,0.00027671,3]
[387248072,1758664394799,-400.0,0.00027671,3]
[387248073,1758664394808,-628.73,0.00027671,3]
[387248074,1758664394817,-792.8,0.00027671,3]
[387248075,1758664394827,-718.2,0.00027671,3]
[387248076,1758664394836,-771.65,0.00027671,3]
[387248077,1758664394846,-735.99,0.00027671,3]
[387248078,1758664394855,-724.09,0.00027671,3]
[387248079,1758664394864,-735.82,0.00027671,3]
[387248080,1758664394874,-400.0,0.00027671,3]
[387248081,1758664394884,-724.51,0.00027671,3]
[387248082,1758664394894,-590.38,0.00027671,3]
[387248083,1758664394903,-443.29,0.00027671,3]
[387248084,1758664394912,-400.0,0.00027671,3]
[387248085,1758664394922,-704.47,0.00027671,3]
[387248086,1758664394932,-597.65,0.00027671,3]
[387248087,1758664394941,-644.02,0.00027671,3]
[387248088,1758664394951,-490.6,0.00027671,3]
[387248089,1758664394960,-544.45,0.00027671,3]
[387248090,1758664394970,-1124.92,0.00027671,3]
[387248091,1758664394980,-400.98,0.00027671,3]
[387248092,1758664394990,-1607.1,0.00027671,3]
[387248093,1758664395000,-643.25,0.00027671,3]
[387248094,1758664395010,-702.26,0.00027671,3]
[387248095,1758664395020,-623.69,0.00027671,3]
[387248096,1758664395030,-400.0,0.00027671,3]
[387248097,1758664395039,-1080.61,0.00027671,3]
[387248098,1758664395049,-422.24,0.00027671,3]
[387248099,1758664395058,-417.7,0.00027671,3]
[387248100,1758664395068,-909.48,0.00027671,3]
[387248101,1758664395078,-400.0,0.00027671,3]
[387248102,1758664395087,-515.95,0.00027671,3]
[387248103,1758664395097,-400.0,0.00027671,3]
[387248104,1758664395106,-419.15,0.00027671,3]
[387248105,1758664395117,-1535.1,0.00027671,3]
[387248106,1758664395126,-421.32,0.00027671,3]
[387248107,1758664395135,-610.62,0.00027671,3]
[387248108,1758664395145,-400.0,0.00027671,3]
[387248109,1758664395155,-788.82,0.00027671,3]
[387248110,1758664395164,-501.25,0.00027671,3]
[387248111,1758664395173,-400.0,0.00027671,3]
[387248112,1758664395182,-400.0,0.00027671,3]
[387248113,1758664395192,-400.0,0.00027671,3]
[387248114,1758664395574,-400.0,0.00027671,3]
[387248115,1758664395586,-467.58,0.00027671,3]
[387248116,1758664395595,-614.35,0.00027671,3]
[387248117,1758664395605,-387.17,0.00027671,3]
[387248118,1758664395614,-686.69,0.00027671,3]
[387248119,1758664395624,-400.0,0.00027671,3]
[387248120,1758664395634,-1284.73,0.00027671,3]
[387248121,1758664395643,-642.36,0.00027671,3]
[387248122,1758664395652,-400.0,0.00027671,3]
[387248123,1758664395661,-560.54,0.00027671,3]
[387248124,1758664395671,-1073.37,0.00027671,3]
[387248125,1758664395681,-753.1,0.00027671,3]
[387248126,1758664395690,-400.0,0.00027671,3]
[387248127,1758664395699,-545.97,0.00027671,3]
[387248128,1758664395708,-400.0,0.00027671,3]
[387248129,1758664395718,-400.0,0.00027671,3]
[387248130,1758664395727,-580.05,0.00027671,3]
[387248131,1758664395736,-1196.06,0.00027671,3]
[387248132,1758664395746,-779.4,0.00027671,3]
[387248133,1758664395755,-1387.31,0.00027671,3]
[387248134,1758664395765,-526.44,0.00027671,3]
[387248135,1758664395775,-271.98705178,0.00027671,3]
[387248136,1758664395784,-914.9,0.00027671,3]
[387248137,1758664395794,-400.0,0.00027671,3]
[387248138,1758664395803,-751.05,0.00027671,3]
[387248139,1758664395812,-10481.21,0.00027671,3]
[387248140,1758664395821,-400.0,0.00027671,3]
[387248141,1758664395831,-585.69,0.00027671,3]
[387248142,1758664395841,-400.0,0.00027671,3]
[387248143,1758664395850,-1984.04,0.00027671,3]
[387248144,1758664395860,-1075.59,0.00027671,3]
[387248145,1758664395870,-1243.9,0.00027671,3]
[387248146,1758664395880,-2675.56,0.00027671,3]
[387248147,1758664395889,-1687.56,0.00027671,3]
[387248148,1758664395898,-603.56,0.00027671,3]
[387248149,1758664395908,-400.0,0.00027671,3]
[387248150,1758664395917,-613.2,0.00027671,3]
[387248151,1758664395927,-1380.17,0.00027671,3]
[387248152,1758664395936,-400.0,0.00027671,3]
[387248153,1758664395945,-400.0,0.00027671,3]
[387248154,1758664395955,-637.31,0.00027671,3]
[387248155,1758664395964,-536.31,0.00027671,3]
[387248156,1758664395973,-1960.16,0.00027671,3]
[387248157,1758664395983,-653.4,0.00027671,3]
[387248158,1758664395993,-400.0,0.00027671,3]
[387248159,1758664396003,-400.0,0.00027671,3]
[387248160,1758664396012,-1811.83,0.00027671,3]
[387248161,1758664396022,-400.0,0.00027671,3]
[387248162,1758664396031,-485.31,0.00027671,3]
[387248163,1758664396041,-3596.07,0.00027671,3]
[387248164,1758664396051,-609.4,0.00027671,3]
[387248165,1758664396060,-1777.36,0.00027671,3]
[387248166,1758664396069,-955.0,0.00027671,3]
[387248167,1758664396079,-1530.13,0.00027671,3]
[387248168,1758664396088,-400.0,0.00027671,3]
[387248169,1758664396098,-1065.12,0.00027671,3]
[387248170,1758664396107,-400.0,0.00027671,3]
[387248171,1758664396116,-624.46,0.00027671,3]
[387248172,1758664396126,-668.62,0.00027671,3]
[387248173,1758664396136,-400.0,0.00027671,3]
[387248174,1758664396145,-766.88,0.00027671,3]
[387248175,1758664396155,-488.82,0.00027671,3]
[387248176,1758664396164,-400.0,0.00027671,3]
[387248177,1758664396174,-1866.98,0.00027671,3]
[387248178,1758664396184,-674.88,0.00027671,3]
[387248179,1758664396193,-507.6,0.00027671,3]
[387248180,1758664396203,-2251.93,0.00027671,3]
[387248181,1758664396213,-1430.39,0.00027671,3]
[387248182,1758664396224,-1005.24,0.00027671,3]
[387248183,1758664396233,-400.0,0.00027671,3]
[387248184,1758664396244,-706.55,0.00027671,3]
[387248185,1758664396254,-400.0,0.00027671,3]
[387248186,1758664396263,-471.06,0.00027671,3]
[387248187,1758664396273,-440.49,0.00027671,3]
[387248188,1758664396283,-1632.87,0.00027671,3]
[387248189,1758664396292,-2172.06,0.00027671,3]
[387248190,1758664396302,-1577.53,0.00027671,3]
[387248191,1758664396313,-573.43,0.00027671,3]
[387248192,1758664396323,-1762.21,0.00027671,3]
[387248193,1758664396334,-2598.87,0.00027671,3]
[387248194,1758664396345,-2106.48,0.00027671,3]
[387248195,1758664396356,-400.0,0.00027671,3]
[387248196,1758664396367,-2137.16,0.00027671,3]
[387248197,1758664396377,-1633.99,0.00027671,3]
[387248198,1758664396387,-665.33,0.00027671,3]
[387248199,1758664396396,-400.0,0.00027671,3]
[387248200,1758664396408,-507.04,0.00027671,3]
[387248201,1758664396418,-652.14,0.00027671,3]
[387248202,1758664396427,-2272.09,0.00027671,3]
[387248203,1758664396438,-441.78,0.00027671,3]
[387248204,1758664396448,-2095.57,0.00027671,3]
[387248205,1758664396459,-2047.84,0.00027671,3]
[387248206,1758664396469,-425.92,0.00027671,3]
[387248207,1758664396479,-782.31,0.00027671,3]
[387248208,1758664396489,-1845.88,0.00027671,3]